[Event "Titled Tuesday Blitz March 29 Late 2022"]
[White "Needleman, Alejandro"]
[Black "Rosen, Eric"]
[WhiteFideId "100730"]
[BlackFideId "2032562"]
[WhiteElo "2233"]
[BlackElo "2362"]
[Result "0-1"]
[Round "03"]
[TimeControl "180+1"]
[Date "2022.03.30"]
[WhiteClock "0:00:02"]
[BlackClock "0:00:04"]

1. e4 {[%clk 0:03:00]}  e5 {[%clk 0:02:58]} 2. Nf3 {[%clk 0:03:00]}  Nf6 {[%clk 0:02:58]} 3. Nxe5 {[%clk 0:02:59]}  Nc6 {[%clk 0:02:58]} 4. Nxc6 {[%clk 0:02:57]}  dxc6 {[%clk 0:02:59]} 5. d3 {[%clk 0:02:51]}  Bc5 {[%clk 0:02:59]} 6. Be2 {[%clk 0:02:52]}  h5 {[%clk 0:02:59]} 7. Nc3 {[%clk 0:02:49]}  Ng4 {[%clk 0:02:57]} 8. Bxg4 {[%clk 0:02:46]}  hxg4 {[%clk 0:02:58]} 9. Be3 {[%clk 0:02:40]}  Bxe3 {[%clk 0:02:57]} 10. fxe3 {[%clk 0:02:40]}  Qd6 {[%clk 0:02:58]} 11. Qe2 {[%clk 0:02:33]}  Be6 {[%clk 0:02:46]} 12. O-O-O {[%clk 0:02:27]}  Rxh2 {[%clk 0:02:46]} 13. Rxh2 {[%clk 0:02:17]}  Qxh2 {[%clk 0:02:47]} 14. d4 {[%clk 0:02:18]}  O-O-O {[%clk 0:02:32]} 15. d5 {[%clk 0:02:17]}  cxd5 {[%clk 0:02:28]} 16. exd5 {[%clk 0:02:17]}  Bd7 {[%clk 0:02:27]} 17. e4 {[%clk 0:02:17]}  Qe5 {[%clk 0:02:16]} 18. Qf2 {[%clk 0:02:09]}  a6 {[%clk 0:01:37]} 19. Qxf7 {[%clk 0:02:07]}  b5 {[%clk 0:01:32]} 20. Qf2 {[%clk 0:01:48]}  Kb7 {[%clk 0:00:48]} 21. Qd4 {[%clk 0:01:47]}  Qxd4 {[%clk 0:00:44]} 22. Rxd4 {[%clk 0:01:46]}  Re8 {[%clk 0:00:45]} 23. Kd2 {[%clk 0:01:40]}  c5 {[%clk 0:00:42]} 24. dxc6+ {[%clk 0:01:37]}  Bxc6 {[%clk 0:00:42]} 25. Nd5 {[%clk 0:01:34]}  Rh8 {[%clk 0:00:30]} 26. Ke3 {[%clk 0:01:34]}  Rh1 {[%clk 0:00:26]} 27. a3 {[%clk 0:01:25]}  Rc1 {[%clk 0:00:22]} 28. Rd2 {[%clk 0:01:24]}  Rf1 {[%clk 0:00:17]} 29. Rf2 {[%clk 0:01:02]}  Re1+ {[%clk 0:00:15]} 30. Kd4 {[%clk 0:00:59]}  Rd1+ {[%clk 0:00:10]} 31. Kc5 {[%clk 0:00:58]}  Be8 {[%clk 0:00:05]} 32. Rf8 {[%clk 0:00:56]}  Bg6 {[%clk 0:00:05]} 33. Rg8 {[%clk 0:00:55]}  Bxe4 {[%clk 0:00:04]} 34. Rxg7+ {[%clk 0:00:55]}  Kc8 {[%clk 0:00:03]} 35. Rg8+ {[%clk 0:00:49]}  Kb7 {[%clk 0:00:04]} 36. Rg7+ {[%clk 0:00:42]}  Kc8 {[%clk 0:00:04]} 37. Ne7+ {[%clk 0:00:41]}  Kd7 {[%clk 0:00:03]} 38. Nf5+ {[%clk 0:00:37]}  Ke6 {[%clk 0:00:03]} 39. Nd4+ {[%clk 0:00:37]}  Ke5 {[%clk 0:00:03]} 40. Re7+ {[%clk 0:00:36]}  Kf4 {[%clk 0:00:03]} 41. Ne2+ {[%clk 0:00:32]}  Kf5 {[%clk 0:00:02]} 42. Rf7+ {[%clk 0:00:27]}  Ke5 {[%clk 0:00:02]} 43. Re7+ {[%clk 0:00:27]}  Kf5 {[%clk 0:00:03]} 44. Ng3+ {[%clk 0:00:25]}  Kf4 {[%clk 0:00:03]} 45. Nxe4 {[%clk 0:00:23]}  Re1 {[%clk 0:00:03]} 46. Nc3 {[%clk 0:00:18]}  Rc1 {[%clk 0:00:02]} 47. Re2 {[%clk 0:00:16]}  Kg3 {[%clk 0:00:02]} 48. Rd2 {[%clk 0:00:15]}  Re1 {[%clk 0:00:01]} 49. Kb6 {[%clk 0:00:15]}  Re6+ {[%clk 0:00:02]} 50. Ka5 {[%clk 0:00:15]}  Kh2 {[%clk 0:00:03]} 51. b4 {[%clk 0:00:14]}  g3 {[%clk 0:00:03]} 52. a4 {[%clk 0:00:13]}  bxa4 {[%clk 0:00:03]} 53. Kxa4 {[%clk 0:00:12]}  Rf6 {[%clk 0:00:03]} 54. Ne4 {[%clk 0:00:11]}  Rf4 {[%clk 0:00:02]} 55. Re2 {[%clk 0:00:10]}  Rf1 {[%clk 0:00:02]} 56. Ka5 {[%clk 0:00:10]}  Ra1+ {[%clk 0:00:02]} 57. Kb6 {[%clk 0:00:09]}  Ra4 {[%clk 0:00:02]} 58. c3 {[%clk 0:00:09]}  Ra1 {[%clk 0:00:03]} 59. c4 {[%clk 0:00:09]}  Ra4 {[%clk 0:00:02]} 60. c5 {[%clk 0:00:09]}  a5 {[%clk 0:00:02]} 61. Kb5 {[%clk 0:00:09]}  Rxb4+ {[%clk 0:00:02]} 62. Kxa5 {[%clk 0:00:08]}  Rb1 {[%clk 0:00:02]} 63. c6 {[%clk 0:00:07]}  Rc1 {[%clk 0:00:03]} 64. Kb6 {[%clk 0:00:06]}  Kg1 {[%clk 0:00:03]} 65. Nc5 {[%clk 0:00:06]}  Kf1 {[%clk 0:00:03]} 66. Rd2 {[%clk 0:00:04]}  Rb1+ {[%clk 0:00:04]} 67. Kc7 {[%clk 0:00:02]}  Ra1 {[%clk 0:00:04]} 0-1


[Site "https://www.chess.com"]

[Event "Titled Tuesday Blitz March 29 Late 2022"]
[White "Papasimakopoulos, Alexandros"]
[Black "Indjic, Aleksandar"]
[WhiteFideId "4244125"]
[BlackFideId "911925"]
[WhiteElo "2340"]
[BlackElo "2616"]
[Result "1-0"]
[Round "03"]
[TimeControl "180+1"]
[Date "2022.03.29"]
[WhiteClock "0:00:17"]
[BlackClock "0:00:02"]

1. d4 {[%clk 0:03:00]}  Nf6 {[%clk 0:02:59]} 2. c4 {[%clk 0:03:00]}  c5 {[%clk 0:02:59]} 3. d5 {[%clk 0:02:59]}  e6 {[%clk 0:03:00]} 4. Nc3 {[%clk 0:03:00]}  exd5 {[%clk 0:03:00]} 5. cxd5 {[%clk 0:03:00]}  d6 {[%clk 0:03:00]} 6. Nf3 {[%clk 0:03:01]}  g6 {[%clk 0:03:00]} 7. Bf4 {[%clk 0:03:01]}  Bg7 {[%clk 0:02:52]} 8. e4 {[%clk 0:02:59]}  O-O {[%clk 0:02:43]} 9. Be2 {[%clk 0:02:59]}  Bg4 {[%clk 0:02:42]} 10. O-O {[%clk 0:02:58]}  Bxf3 {[%clk 0:02:42]} 11. Bxf3 {[%clk 0:02:59]}  a6 {[%clk 0:02:35]} 12. e5 {[%clk 0:02:58]}  dxe5 {[%clk 0:02:34]} 13. Bxe5 {[%clk 0:02:59]}  Ne8 {[%clk 0:02:31]} 14. Bxg7 {[%clk 0:02:51]}  Kxg7 {[%clk 0:02:30]} 15. a4 {[%clk 0:02:50]}  Nd6 {[%clk 0:02:28]} 16. Re1 {[%clk 0:02:41]}  Nd7 {[%clk 0:02:28]} 17. Ne4 {[%clk 0:02:37]}  Qc7 {[%clk 0:02:24]} 18. Qc2 {[%clk 0:02:31]}  Nxe4 {[%clk 0:02:23]} 19. Rxe4 {[%clk 0:02:29]}  Qd6 {[%clk 0:02:23]} 20. Qc3+ {[%clk 0:02:26]}  Kg8 {[%clk 0:02:22]} 21. Rae1 {[%clk 0:02:26]}  b5 {[%clk 0:02:21]} 22. axb5 {[%clk 0:02:26]}  axb5 {[%clk 0:02:22]} 23. h4 {[%clk 0:02:21]}  b4 {[%clk 0:02:19]} 24. Qc1 {[%clk 0:02:18]}  Nf6 {[%clk 0:02:14]} 25. R4e2 {[%clk 0:02:15]}  Rfe8 {[%clk 0:02:13]} 26. h5 {[%clk 0:02:12]}  Rxe2 {[%clk 0:02:11]} 27. Rxe2 {[%clk 0:02:13]}  Re8 {[%clk 0:02:06]} 28. Rxe8+ {[%clk 0:02:12]}  Nxe8 {[%clk 0:02:04]} 29. b3 {[%clk 0:02:04]}  Nf6 {[%clk 0:02:02]} 30. Qg5 {[%clk 0:02:02]}  Kg7 {[%clk 0:02:00]} 31. h6+ {[%clk 0:01:59]}  Kf8 {[%clk 0:01:59]} 32. g3 {[%clk 0:01:58]}  Ne8 {[%clk 0:01:47]} 33. Qd2 {[%clk 0:01:45]}  Qe5 {[%clk 0:01:43]} 34. Kf1 {[%clk 0:01:33]}  Ke7 {[%clk 0:01:42]} 35. Qa2 {[%clk 0:01:30]}  Qc3 {[%clk 0:01:33]} 36. Be2 {[%clk 0:01:21]}  Kf6 {[%clk 0:01:21]} 37. Qa8 {[%clk 0:01:14]}  Ke7 {[%clk 0:00:37]} 38. Bc4 {[%clk 0:00:58]}  Qe5 {[%clk 0:00:25]} 39. Qa7+ {[%clk 0:00:54]}  Qc7 {[%clk 0:00:25]} 40. Qa8 {[%clk 0:00:46]}  Qd7 {[%clk 0:00:21]} 41. Kg2 {[%clk 0:00:43]}  Kf6 {[%clk 0:00:21]} 42. Qa5 {[%clk 0:00:33]}  Qd6 {[%clk 0:00:19]} 43. Qa8 {[%clk 0:00:27]}  Qd7 {[%clk 0:00:18]} 44. Qb8 {[%clk 0:00:23]}  g5 {[%clk 0:00:04]} 45. Kg1 {[%clk 0:00:20]}  Qe7 {[%clk 0:00:02]} 46. Bb5 {[%clk 0:00:18]}  Qe1+ {[%clk 0:00:02]} 47. Kg2 {[%clk 0:00:17]}  Qe4+ {[%clk 0:00:02]} 48. Kh2 {[%clk 0:00:17]} 1-0


[Site "https://www.chess.com"]

[Event "Titled Tuesday Blitz March 29 Late 2022"]
[White "Paravyan, David"]
[Black "Jaracz, Pawel"]
[WhiteFideId "4194985"]
[BlackFideId "1102222"]
[WhiteElo "2569"]
[BlackElo "2429"]
[Result "1-0"]
[Round "03"]
[TimeControl "180+1"]
[Date "2022.03.29"]
[WhiteClock "0:00:08"]
[BlackClock "0:00:06"]

1. e4 {[%clk 0:03:00]}  c5 {[%clk 0:02:58]} 2. Nf3 {[%clk 0:03:00]}  e6 {[%clk 0:02:58]} 3. d4 {[%clk 0:03:00]}  cxd4 {[%clk 0:02:58]} 4. Nxd4 {[%clk 0:03:01]}  Nc6 {[%clk 0:02:58]} 5. Nc3 {[%clk 0:03:00]}  d6 {[%clk 0:02:59]} 6. g4 {[%clk 0:02:59]}  Nge7 {[%clk 0:02:58]} 7. h4 {[%clk 0:02:56]}  Nxd4 {[%clk 0:02:48]} 8. Qxd4 {[%clk 0:02:56]}  Nc6 {[%clk 0:02:48]} 9. Qd3 {[%clk 0:02:52]}  Qb6 {[%clk 0:02:29]} 10. f4 {[%clk 0:02:30]}  Bd7 {[%clk 0:02:28]} 11. a3 {[%clk 0:02:28]}  Rc8 {[%clk 0:02:26]} 12. Be3 {[%clk 0:02:27]}  Qa5 {[%clk 0:01:55]} 13. O-O-O {[%clk 0:02:26]}  a6 {[%clk 0:01:52]} 14. Kb1 {[%clk 0:01:54]}  b5 {[%clk 0:01:51]} 15. Rh3 {[%clk 0:01:46]}  b4 {[%clk 0:01:50]} 16. axb4 {[%clk 0:01:39]}  Nxb4 {[%clk 0:01:50]} 17. Qd4 {[%clk 0:01:40]}  h5 {[%clk 0:00:49]} 18. g5 {[%clk 0:01:30]}  e5 {[%clk 0:00:44]} 19. fxe5 {[%clk 0:01:28]}  Nc6 {[%clk 0:00:44]} 20. Qd5 {[%clk 0:01:11]}  Qxd5 {[%clk 0:00:43]} 21. exd5 {[%clk 0:01:07]}  Nxe5 {[%clk 0:00:43]} 22. Rg3 {[%clk 0:01:07]}  Be7 {[%clk 0:00:30]} 23. Bxa6 {[%clk 0:01:07]}  Rb8 {[%clk 0:00:30]} 24. Bd4 {[%clk 0:00:43]}  O-O {[%clk 0:00:30]} 25. Bxe5 {[%clk 0:00:38]}  dxe5 {[%clk 0:00:31]} 26. d6 {[%clk 0:00:39]}  Bd8 {[%clk 0:00:31]} 27. Ne4 {[%clk 0:00:28]}  Rb4 {[%clk 0:00:22]} 28. Nc5 {[%clk 0:00:28]}  Bf5 {[%clk 0:00:22]} 29. Rf1 {[%clk 0:00:21]}  g6 {[%clk 0:00:22]} 30. Rgf3 {[%clk 0:00:16]}  Rxh4 {[%clk 0:00:21]} 31. Rxf5 {[%clk 0:00:16]}  gxf5 {[%clk 0:00:22]} 32. Rxf5 {[%clk 0:00:17]}  Rh1+ {[%clk 0:00:18]} 33. Ka2 {[%clk 0:00:17]}  Re1 {[%clk 0:00:19]} 34. Nd7 {[%clk 0:00:16]}  Re8 {[%clk 0:00:18]} 35. Bc4 {[%clk 0:00:17]}  Kg7 {[%clk 0:00:14]} 36. Bxf7 {[%clk 0:00:17]}  Rh8 {[%clk 0:00:14]} 37. Be6 {[%clk 0:00:12]}  h4 {[%clk 0:00:14]} 38. Nxe5 {[%clk 0:00:13]}  Rxe5 {[%clk 0:00:12]} 39. Rxe5 {[%clk 0:00:14]}  Re8 {[%clk 0:00:12]} 40. Re4 {[%clk 0:00:09]}  h3 {[%clk 0:00:12]} 41. Bd5 {[%clk 0:00:10]}  Rh8 {[%clk 0:00:10]} 42. c4 {[%clk 0:00:10]}  h2 {[%clk 0:00:09]} 43. Re1 {[%clk 0:00:09]}  Bb6 {[%clk 0:00:10]} 44. d7 {[%clk 0:00:08]}  Bg1 {[%clk 0:00:09]} 45. Re8 {[%clk 0:00:09]}  Bb6 {[%clk 0:00:06]} 46. Rxh8 {[%clk 0:00:08]} 1-0


[Site "https://www.chess.com"]

[Event "Titled Tuesday Blitz March 29 Late 2022"]
[White "Perera Alfonso, Rene Humberto"]
[Black "Bortnyk, Olexandr"]
[WhiteFideId "3514722"]
[BlackFideId "14120828"]
[WhiteElo "2313"]
[BlackElo "2723"]
[Result "0-1"]
[Round "03"]
[TimeControl "180+1"]
[Date "2022.03.29"]
[WhiteClock "0:00:07"]
[BlackClock "0:01:39"]

1. e4 {[%clk 0:02:54]}  d6 {[%clk 0:02:58]} 2. d4 {[%clk 0:02:52]}  Nf6 {[%clk 0:02:58]} 3. Nc3 {[%clk 0:02:50]}  Nbd7 {[%clk 0:02:59]} 4. f3 {[%clk 0:02:42]}  e5 {[%clk 0:02:57]} 5. Be3 {[%clk 0:01:58]}  c6 {[%clk 0:02:56]} 6. Qd2 {[%clk 0:01:57]}  b5 {[%clk 0:02:56]} 7. Nge2 {[%clk 0:01:54]}  Be7 {[%clk 0:02:53]} 8. g4 {[%clk 0:01:54]}  b4 {[%clk 0:02:44]} 9. Nd1 {[%clk 0:01:54]}  d5 {[%clk 0:02:45]} 10. g5 {[%clk 0:01:51]}  Nh5 {[%clk 0:02:44]} 11. exd5 {[%clk 0:01:45]}  cxd5 {[%clk 0:02:45]} 12. Nf2 {[%clk 0:01:42]}  O-O {[%clk 0:02:32]} 13. O-O-O {[%clk 0:01:38]}  Ba6 {[%clk 0:02:25]} 14. Ng3 {[%clk 0:01:26]}  Bxf1 {[%clk 0:02:20]} 15. Nxh5 {[%clk 0:01:14]}  Bg2 {[%clk 0:02:17]} 16. Rhg1 {[%clk 0:00:49]}  Bxf3 {[%clk 0:02:17]} 17. Nf6+ {[%clk 0:00:48]}  Nxf6 {[%clk 0:02:07]} 18. gxf6 {[%clk 0:00:49]}  Bxf6 {[%clk 0:02:07]} 19. Rdf1 {[%clk 0:00:45]}  e4 {[%clk 0:02:08]} 20. Ng4 {[%clk 0:00:39]}  Kh8 {[%clk 0:02:07]} 21. Bf4 {[%clk 0:00:23]}  Bxg4 {[%clk 0:01:47]} 22. Rxg4 {[%clk 0:00:22]}  Qb6 {[%clk 0:01:48]} 23. Be3 {[%clk 0:00:20]}  Qa6 {[%clk 0:01:46]} 24. Rgf4 {[%clk 0:00:11]}  Qxa2 {[%clk 0:01:45]} 25. Qxb4 {[%clk 0:00:10]}  Rab8 {[%clk 0:01:40]} 26. Qc3 {[%clk 0:00:08]}  Rfc8 {[%clk 0:01:38]} 27. Qa3 {[%clk 0:00:08]}  Qxa3 {[%clk 0:01:38]} 28. bxa3 {[%clk 0:00:09]}  Bg5 {[%clk 0:01:39]} 29. Rxe4 {[%clk 0:00:07]}  dxe4 {[%clk 0:01:40]} 30. Bxg5 {[%clk 0:00:07]}  f6 {[%clk 0:01:39]} 0-1


[Site "https://www.chess.com"]

[Event "Titled Tuesday Blitz March 29 Late 2022"]
[White "Piliczewski, Bogusz"]
[Black "Rabineau, Clement"]
[WhiteFideId "1104144"]
[BlackFideId "628891"]
[WhiteElo "1896"]
[BlackElo "2237"]
[Result "0-1"]
[Round "03"]
[TimeControl "180+1"]
[Date "2022.03.30"]
[WhiteClock "0:00:12"]
[BlackClock "0:00:06"]

1. d4 {[%clk 0:03:00]}  d6 {[%clk 0:03:00]} 2. Nf3 {[%clk 0:03:00]}  g6 {[%clk 0:03:00]} 3. Bf4 {[%clk 0:03:01]}  Bg7 {[%clk 0:03:01]} 4. h3 {[%clk 0:03:01]}  f5 {[%clk 0:02:58]} 5. e3 {[%clk 0:03:01]}  Nf6 {[%clk 0:02:58]} 6. Be2 {[%clk 0:03:02]}  O-O {[%clk 0:02:59]} 7. O-O {[%clk 0:03:02]}  Nc6 {[%clk 0:02:59]} 8. c4 {[%clk 0:03:00]}  Nh5 {[%clk 0:02:52]} 9. Bh2 {[%clk 0:02:59]}  e5 {[%clk 0:02:53]} 10. Nc3 {[%clk 0:02:48]}  f4 {[%clk 0:02:49]} 11. dxe5 {[%clk 0:02:39]}  dxe5 {[%clk 0:02:41]} 12. Qxd8 {[%clk 0:02:37]}  Rxd8 {[%clk 0:02:42]} 13. Rfd1 {[%clk 0:02:29]}  Bd7 {[%clk 0:02:24]} 14. Nd5 {[%clk 0:02:24]}  fxe3 {[%clk 0:02:00]} 15. fxe3 {[%clk 0:02:23]}  e4 {[%clk 0:01:53]} 16. Nd4 {[%clk 0:02:08]}  Nxd4 {[%clk 0:01:43]} 17. exd4 {[%clk 0:02:08]}  c6 {[%clk 0:01:35]} 18. Bxh5 {[%clk 0:01:48]}  cxd5 {[%clk 0:01:22]} 19. Be2 {[%clk 0:01:46]}  Be6 {[%clk 0:01:20]} 20. c5 {[%clk 0:01:40]}  Rac8 {[%clk 0:01:02]} 21. b4 {[%clk 0:01:38]}  b6 {[%clk 0:00:50]} 22. Bd6 {[%clk 0:01:35]}  bxc5 {[%clk 0:00:39]} 23. bxc5 {[%clk 0:01:32]}  Bd7 {[%clk 0:00:17]} 24. Ba6 {[%clk 0:01:30]}  Rc6 {[%clk 0:00:17]} 25. Bb7 {[%clk 0:01:28]}  Rxd6 {[%clk 0:00:16]} 26. cxd6 {[%clk 0:01:27]}  Bb5 {[%clk 0:00:15]} 27. Bxd5+ {[%clk 0:01:25]}  Kf8 {[%clk 0:00:11]} 28. Bxe4 {[%clk 0:01:22]}  Rxd6 {[%clk 0:00:10]} 29. d5 {[%clk 0:01:22]}  Bxa1 {[%clk 0:00:09]} 30. Rxa1 {[%clk 0:01:21]}  Bc4 {[%clk 0:00:09]} 31. a4 {[%clk 0:01:17]}  Ke7 {[%clk 0:00:10]} 32. Rd1 {[%clk 0:01:14]}  a5 {[%clk 0:00:09]} 33. Rd4 {[%clk 0:01:13]}  Bb3 {[%clk 0:00:08]} 34. Kf2 {[%clk 0:01:10]}  Rb6 {[%clk 0:00:09]} 35. Bf3 {[%clk 0:01:00]}  Kd6 {[%clk 0:00:08]} 36. Rh4 {[%clk 0:00:52]}  h5 {[%clk 0:00:07]} 37. g4 {[%clk 0:00:52]}  hxg4 {[%clk 0:00:08]} 38. Rxg4 {[%clk 0:00:51]}  Kc5 {[%clk 0:00:07]} 39. Be4 {[%clk 0:00:48]}  Bxa4 {[%clk 0:00:03]} 40. Bxg6 {[%clk 0:00:43]}  Bd7 {[%clk 0:00:03]} 41. Rg5 {[%clk 0:00:41]}  a4 {[%clk 0:00:03]} 42. d6+ {[%clk 0:00:33]}  Kxd6 {[%clk 0:00:04]} 43. Ra5 {[%clk 0:00:33]}  Bb5 {[%clk 0:00:03]} 44. h4 {[%clk 0:00:31]}  Kc5 {[%clk 0:00:03]} 45. h5 {[%clk 0:00:30]}  Kb4 {[%clk 0:00:03]} 46. Rxa4+ {[%clk 0:00:28]}  Bxa4 {[%clk 0:00:03]} 47. Ke3 {[%clk 0:00:26]}  Bd7 {[%clk 0:00:03]} 48. Kf4 {[%clk 0:00:26]}  Kc5 {[%clk 0:00:03]} 49. Kg5 {[%clk 0:00:26]}  Kd5 {[%clk 0:00:03]} 50. h6 {[%clk 0:00:26]}  Rb8 {[%clk 0:00:03]} 51. Bf7+ {[%clk 0:00:23]}  Kd6 {[%clk 0:00:03]} 52. h7 {[%clk 0:00:23]}  Rh8 {[%clk 0:00:02]} 53. Bg8 {[%clk 0:00:23]}  Ke7 {[%clk 0:00:02]} 54. Kg6 {[%clk 0:00:23]}  Kf8 {[%clk 0:00:03]} 55. Kf6 {[%clk 0:00:22]}  Bb5 {[%clk 0:00:04]} 56. Kg6 {[%clk 0:00:22]}  Ba4 {[%clk 0:00:04]} 57. Kf6 {[%clk 0:00:22]}  Bc2 {[%clk 0:00:05]} 58. Ke6 {[%clk 0:00:14]}  Bxh7 {[%clk 0:00:05]} 59. Bxh7 {[%clk 0:00:12]}  Rxh7 {[%clk 0:00:06]} 0-1


[Site "https://www.chess.com"]

[Event "Titled Tuesday Blitz March 29 Late 2022"]
[White "Pourkashiyan, Atousa"]
[Black "Erdogdu, Mert"]
[WhiteFideId "12502014"]
[BlackFideId "6301495"]
[WhiteElo "2247"]
[BlackElo "2485"]
[Result "1/2-1/2"]
[Round "03"]
[TimeControl "180+1"]
[Date "2022.03.30"]
[WhiteClock "0:00:08"]
[BlackClock "0:00:09"]

1. e4 {[%clk 0:02:37]}  c5 {[%clk 0:02:59]} 2. Nf3 {[%clk 0:02:37]}  d6 {[%clk 0:02:59]} 3. d4 {[%clk 0:02:38]}  cxd4 {[%clk 0:03:00]} 4. Nxd4 {[%clk 0:02:39]}  Nf6 {[%clk 0:03:00]} 5. Nc3 {[%clk 0:02:40]}  a6 {[%clk 0:03:01]} 6. Be2 {[%clk 0:02:40]}  e6 {[%clk 0:03:01]} 7. O-O {[%clk 0:02:40]}  Be7 {[%clk 0:03:01]} 8. f4 {[%clk 0:02:41]}  Qc7 {[%clk 0:03:01]} 9. Be3 {[%clk 0:02:41]}  O-O {[%clk 0:03:01]} 10. a4 {[%clk 0:02:39]}  Nc6 {[%clk 0:03:01]} 11. Kh1 {[%clk 0:02:38]}  Re8 {[%clk 0:03:00]} 12. Qe1 {[%clk 0:02:38]}  Nxd4 {[%clk 0:02:52]} 13. Bxd4 {[%clk 0:02:39]}  e5 {[%clk 0:02:52]} 14. fxe5 {[%clk 0:02:34]}  dxe5 {[%clk 0:02:52]} 15. Qg3 {[%clk 0:02:34]}  Bd8 {[%clk 0:02:53]} 16. Be3 {[%clk 0:02:19]}  Kh8 {[%clk 0:02:52]} 17. Rad1 {[%clk 0:02:14]}  Be6 {[%clk 0:02:45]} 18. Bg5 {[%clk 0:02:10]}  Be7 {[%clk 0:02:12]} 19. Nd5 {[%clk 0:01:58]}  Bxd5 {[%clk 0:01:54]} 20. Bxf6 {[%clk 0:01:53]}  Bxf6 {[%clk 0:01:52]} 21. exd5 {[%clk 0:01:53]}  Qxc2 {[%clk 0:01:31]} 22. Bd3 {[%clk 0:01:53]}  Qb3 {[%clk 0:01:25]} 23. d6 {[%clk 0:01:32]}  Rad8 {[%clk 0:01:14]} 24. Qg4 {[%clk 0:01:24]}  Rxd6 {[%clk 0:00:56]} 25. Be4 {[%clk 0:00:48]}  Rxd1 {[%clk 0:00:47]} 26. Rxd1 {[%clk 0:00:49]}  g6 {[%clk 0:00:41]} 27. Rf1 {[%clk 0:00:48]}  Kg7 {[%clk 0:00:37]} 28. h3 {[%clk 0:00:42]}  h5 {[%clk 0:00:35]} 29. Qd7 {[%clk 0:00:41]}  Re7 {[%clk 0:00:32]} 30. Qd6 {[%clk 0:00:39]}  Bh4 {[%clk 0:00:28]} 31. Qd8 {[%clk 0:00:31]}  Qc4 {[%clk 0:00:23]} 32. Bd3 {[%clk 0:00:25]}  Qxa4 {[%clk 0:00:22]} 33. Bxg6 {[%clk 0:00:21]}  fxg6 {[%clk 0:00:12]} 34. Qf8+ {[%clk 0:00:20]}  Kh7 {[%clk 0:00:13]} 35. Rf7+ {[%clk 0:00:19]}  Rxf7 {[%clk 0:00:13]} 36. Qxf7+ {[%clk 0:00:20]}  Kh6 {[%clk 0:00:12]} 37. Qf8+ {[%clk 0:00:20]}  Kg5 {[%clk 0:00:11]} 38. Qd8+ {[%clk 0:00:19]}  Kf5 {[%clk 0:00:11]} 39. Qc8+ {[%clk 0:00:14]}  Ke4 {[%clk 0:00:09]} 40. Qxb7+ {[%clk 0:00:14]}  Ke3 {[%clk 0:00:07]} 41. Qb6+ {[%clk 0:00:14]}  Qd4 {[%clk 0:00:04]} 42. Qxg6 {[%clk 0:00:12]}  Ke2 {[%clk 0:00:04]} 43. Qxh5+ {[%clk 0:00:12]}  Kf1 {[%clk 0:00:03]} 44. Qf3+ {[%clk 0:00:12]}  Qf2 {[%clk 0:00:03]} 45. Qd1+ {[%clk 0:00:11]}  Qe1 {[%clk 0:00:04]} 46. Qf3+ {[%clk 0:00:12]}  Bf2 {[%clk 0:00:05]} 47. Kh2 {[%clk 0:00:11]}  Qe2 {[%clk 0:00:04]} 48. Qd5 {[%clk 0:00:09]}  e4 {[%clk 0:00:05]} 49. Qc6 {[%clk 0:00:08]}  Qe3 {[%clk 0:00:05]} 50. Qc4+ {[%clk 0:00:07]}  Qe2 {[%clk 0:00:05]} 51. Qc1+ {[%clk 0:00:07]}  Be1 {[%clk 0:00:05]} 52. Qf4+ {[%clk 0:00:08]}  Qf2 {[%clk 0:00:06]} 53. Qxe4 {[%clk 0:00:08]}  Qg3+ {[%clk 0:00:06]} 54. Kh1 {[%clk 0:00:08]}  Qf2 {[%clk 0:00:06]} 55. Qd3+ {[%clk 0:00:08]}  Qe2 {[%clk 0:00:06]} 56. Qf5+ {[%clk 0:00:08]}  Bf2 {[%clk 0:00:06]} 57. Qb1+ {[%clk 0:00:08]}  Qe1 {[%clk 0:00:07]} 58. Qd3+ {[%clk 0:00:08]}  Qe2 {[%clk 0:00:07]} 59. Qb1+ {[%clk 0:00:08]}  Be1 {[%clk 0:00:08]} 60. Qf5+ {[%clk 0:00:08]}  Qf2 {[%clk 0:00:09]} 61. Qd3+ {[%clk 0:00:09]}  Qe2 {[%clk 0:00:09]} 62. Qf5+ {[%clk 0:00:08]} 1/2-1/2


[Site "https://www.chess.com"]

[Event "Titled Tuesday Blitz March 29 Late 2022"]
[White "Pranav, V"]
[Black "Mitrabha, Guha"]
[WhiteFideId "25060783"]
[BlackFideId "5057000"]
[WhiteElo "2349"]
[BlackElo "2468"]
[Result "0-1"]
[Round "03"]
[TimeControl "180+1"]
[Date "2022.03.29"]
[WhiteClock "0:00:02"]
[BlackClock "0:00:47"]

1. e4 {[%clk 0:03:00]}  e5 {[%clk 0:02:59]} 2. Nf3 {[%clk 0:03:01]}  Nc6 {[%clk 0:02:59]} 3. Nc3 {[%clk 0:02:59]}  Nf6 {[%clk 0:02:58]} 4. g3 {[%clk 0:03:00]}  Bc5 {[%clk 0:02:58]} 5. Bg2 {[%clk 0:03:00]}  d6 {[%clk 0:02:58]} 6. d3 {[%clk 0:03:00]}  a6 {[%clk 0:02:59]} 7. O-O {[%clk 0:02:54]}  O-O {[%clk 0:02:59]} 8. h3 {[%clk 0:02:52]}  Re8 {[%clk 0:02:56]} 9. Kh2 {[%clk 0:02:52]}  d5 {[%clk 0:02:48]} 10. Bg5 {[%clk 0:02:50]}  dxe4 {[%clk 0:02:38]} 11. dxe4 {[%clk 0:02:49]}  Be6 {[%clk 0:02:35]} 12. Nd5 {[%clk 0:02:41]}  Be7 {[%clk 0:02:33]} 13. Nxe7+ {[%clk 0:02:38]}  Qxe7 {[%clk 0:02:32]} 14. Qe2 {[%clk 0:02:37]}  h6 {[%clk 0:02:31]} 15. Bd2 {[%clk 0:02:32]}  Qc5 {[%clk 0:02:30]} 16. Be3 {[%clk 0:02:27]}  Qc4 {[%clk 0:02:30]} 17. Qxc4 {[%clk 0:02:22]}  Bxc4 {[%clk 0:02:31]} 18. Rfd1 {[%clk 0:02:23]}  Nxe4 {[%clk 0:02:30]} 19. b3 {[%clk 0:02:16]}  Be6 {[%clk 0:02:30]} 20. Nxe5 {[%clk 0:02:15]}  Nxe5 {[%clk 0:02:14]} 21. Bxe4 {[%clk 0:02:13]}  Bg4 {[%clk 0:02:11]} 22. Bxb7 {[%clk 0:01:25]}  Rab8 {[%clk 0:02:10]} 23. Bxa6 {[%clk 0:01:20]}  Bxd1 {[%clk 0:02:09]} 24. Rxd1 {[%clk 0:01:21]}  Ra8 {[%clk 0:02:10]} 25. Bb5 {[%clk 0:01:19]}  c6 {[%clk 0:02:10]} 26. Ba4 {[%clk 0:01:19]}  Re6 {[%clk 0:02:08]} 27. Kg2 {[%clk 0:01:18]}  Ng6 {[%clk 0:01:55]} 28. Rd3 {[%clk 0:01:11]}  Ne7 {[%clk 0:01:55]} 29. Bc5 {[%clk 0:01:06]}  Nd5 {[%clk 0:01:51]} 30. Bxc6 {[%clk 0:00:59]}  Rxc6 {[%clk 0:01:50]} 31. Rxd5 {[%clk 0:00:59]}  Rxa2 {[%clk 0:01:51]} 32. c3 {[%clk 0:00:59]}  Rc2 {[%clk 0:01:48]} 33. Bd4 {[%clk 0:00:56]}  Ra6 {[%clk 0:01:46]} 34. b4 {[%clk 0:00:55]}  Kh7 {[%clk 0:01:44]} 35. Rd7 {[%clk 0:00:54]}  Kg6 {[%clk 0:01:44]} 36. Kf3 {[%clk 0:00:54]}  Ra3 {[%clk 0:01:42]} 37. Rc7 {[%clk 0:00:54]}  Rb2 {[%clk 0:01:41]} 38. Ke4 {[%clk 0:00:52]}  Ra8 {[%clk 0:01:31]} 39. Kd5 {[%clk 0:00:47]}  f6 {[%clk 0:01:26]} 40. Kc4 {[%clk 0:00:43]}  Rb1 {[%clk 0:01:23]} 41. b5 {[%clk 0:00:34]}  Ra4+ {[%clk 0:01:23]} 42. Kc5 {[%clk 0:00:34]}  Ra5 {[%clk 0:01:22]} 43. Rb7 {[%clk 0:00:35]}  Kf5 {[%clk 0:01:22]} 44. Kc6 {[%clk 0:00:31]}  Ra4 {[%clk 0:01:15]} 45. Rxg7 {[%clk 0:00:27]}  Ke6 {[%clk 0:01:15]} 46. Kc5 {[%clk 0:00:22]}  Ra8 {[%clk 0:01:12]} 47. Rc7 {[%clk 0:00:22]}  Ra5 {[%clk 0:01:06]} 48. Rc6+ {[%clk 0:00:19]}  Kd7 {[%clk 0:01:06]} 49. c4 {[%clk 0:00:18]}  Ra4 {[%clk 0:01:01]} 50. Be3 {[%clk 0:00:16]}  Ke7 {[%clk 0:00:57]} 51. Rc7+ {[%clk 0:00:14]}  Ke6 {[%clk 0:00:57]} 52. b6 {[%clk 0:00:14]}  Rbb4 {[%clk 0:00:56]} 53. Rc6+ {[%clk 0:00:11]}  Ke5 {[%clk 0:00:54]} 54. Bd4+ {[%clk 0:00:11]}  Ke4 {[%clk 0:00:54]} 55. f3+ {[%clk 0:00:08]}  Kd3 {[%clk 0:00:54]} 56. Kd5 {[%clk 0:00:07]}  Ra5+ {[%clk 0:00:54]} 57. Rc5 {[%clk 0:00:02]}  Ra8 {[%clk 0:00:54]} 58. Rb5 {[%clk 0:00:02]}  Rd8+ {[%clk 0:00:53]} 59. Ke6 {[%clk 0:00:01]}  Rxb5 {[%clk 0:00:46]} 60. cxb5 {[%clk 0:00:02]}  Kxd4 {[%clk 0:00:47]} 0-1


[Site "https://www.chess.com"]